bitfinex/quotes_ETHUSD_20250520
["timestamp","ask_amount","ask_price","bid_price","bid_amount"]
[1747705828242,0.05,2537.9,2537.6,1.3654]
[1747705829019,0.05,2537.9,2537.7,0.8154]
[1747705829214,0.05,2537.9,2537.8,15.88]
[1747705829742,0.05,2537.9,2537.8,31.85042883]
[1747705829930,0.05,2537.9,2537.8,26.93652883]
[1747705830242,0.05,2537.9,2537.8,29.01021381]
[1747705830537,0.05,2537.9,2537.8,23.97588998]
[1747705830707,0.05,2537.9,2537.8,23.95353498]
[1747705831339,0.05,2537.9,2537.8,27.89395581]
[1747705835267,0.05,2537.9,2537.8,23.95353498]
[1747705835559,0.05,2537.9,2537.8,27.89395581]
[1747705836464,0.05,2537.9,2537.8,23.95353498]
[1747705836669,0.05,2537.9,2537.8,20.92402498]
[1747705836969,0.05,2537.9,2537.8,26.96112498]
[1747705837463,0.05,2537.9,2537.8,30.90154581]
[1747705838464,3.98878112,2538.9,2537.8,30.90154581]
[1747705838663,0.05,2538.9,2538.7,0.7814]
[1747705838828,0.05,2538.9,2538.8,32.878]
[1747705839028,0.05,2538.9,2538.8,33.428]
[1747705839535,0.05,2538.9,2538.8,60.10010952]
[1747705839735,0.05,2538.9,2538.8,57.50657087]
[1747705839939,0.05,2538.9,2538.8,54.17065757]
[1747705840461,0.809,2540.0,2539.3,3.93797099]
[1747705840462,4.74614504,2540.0,2539.3,3.93797099]
[1747705840627,3.93671288,2540.2,2539.7,8.0]
[1747705840628,3.93678589,2540.2,2539.7,8.0]
[1747705840822,3.93678589,2540.2,2539.8,25.008]
[1747705841223,0.8281,2540.6,2539.8,25.558]
[1747705841428,3.93688525,2540.1,2539.8,28.1138]
[1747705841626,3.93629965,2540.5,2539.8,36.43708]
[1747705841860,3.93629965,2540.5,2539.8,35.502562]
[1747705842066,3.93629965,2540.5,2539.8,34.110306]
[1747705842248,3.93655205,2540.3,2539.8,34.861106]
[1747705842453,3.93682037,2540.2,2539.8,28.3146]
[1747705842661,3.93682037,2540.2,2539.8,25.008]
[1747705842662,3.93701479,2540.0,2539.8,25.008]
[1747705842825,3.98716288,2539.9,2539.8,25.008]
[1747705843029,3.98716288,2539.9,2539.8,24.9408884]
[1747705844342,3.98716288,2539.9,2539.8,0.0668884]
[1747705845560,4.78036288,2539.9,2539.8,0.0668884]
[1747705847269,3.98716288,2539.9,2539.8,0.0668884]
[1747705848748,4.80376288,2539.9,2539.8,0.0668884]
[1747705849962,0.05,2539.9,2539.8,0.0668884]
[1747705850182,0.05,2539.9,2539.8,0.10625572]
[1747705850382,0.05,2539.9,2539.8,0.0668884]
[1747705852488,3.98716288,2539.9,2539.8,8.0668884]
[1747705852796,0.05,2539.9,2539.8,10.46857724]
[1747705854156,3.98716288,2539.9,2539.8,17.52187724]
[1747705854391,3.98716288,2539.9,2539.8,8.0668884]
[1747705854596,3.98716288,2539.9,2539.8,15.9288884]
[1747705855891,3.98716288,2539.9,2539.8,0.0668884]
[1747705856085,3.98716288,2539.9,2539.8,7.9288884]
[1747705858533,0.05,2539.9,2539.8,7.9288884]
[1747705858684,3.98716288,2539.9,2539.8,8.72177724]
[1747705858884,3.98716288,2539.9,2539.8,15.9288884]
[1747705859406,3.98716288,2539.9,2539.8,0.0668884]
[1747705859610,4.81796288,2539.9,2539.8,0.0668884]
[1747705862026,3.98716288,2539.9,2539.8,0.0668884]
[1747705863519,0.05,2539.9,2539.8,0.0668884]
[1747705864829,3.98716288,2539.9,2539.8,0.0668884]
[1747705865131,3.98716288,2539.9,2539.8,0.43542593]
[1747705865427,0.05,2539.9,2539.8,1.22182593]
[1747705865832,0.05,2539.9,2539.8,1.73776743]
[1747705866027,0.05,2539.9,2539.8,1.22182593]
[1747705866230,0.05,2539.9,2539.8,8.29642593]
[1747705866529,0.05,2539.9,2539.8,11.53626293]
[1747705866702,0.05,2539.9,2539.8,8.29642593]
[1747705867225,0.05,2539.9,2539.8,12.45042593]
[1747705867416,0.05,2539.9,2539.8,14.16785538]
[1747705867621,0.05,2539.9,2539.8,12.85535538]
[1747705868204,0.05,2539.9,2539.8,10.01385538]
[1747705868594,0.05,2539.9,2539.8,15.59745538]
[1747705868817,0.05,2539.9,2539.8,18.01385538]
[1747705869253,0.05,2539.9,2539.8,21.04720738]
[1747705870035,0.05,2539.9,2539.8,25.53452527]
[1747705870247,0.05,2539.9,2539.8,22.50117327]
[1747705870604,0.05,2539.9,2539.8,34.79316827]
[1747705870843,0.05,2539.9,2539.8,29.24528927]
[1747705871036,0.05,2539.9,2539.8,27.39700738]
[1747705871213,0.05,2539.9,2539.8,13.64300738]
[1747705871408,0.05,2539.9,2539.8,21.49600738]
[1747705871827,0.05,2539.9,2539.8,10.00585538]
[1747705871828,3.98716288,2539.9,2539.8,10.00585538]
[1747705872041,4.78176288,2539.9,2539.8,8.90192354]
[1747705873838,4.78176288,2539.9,2539.8,8.53338601]
[1747705875242,4.78176288,2539.9,2539.8,7.9198884]
[1747705879547,3.98716288,2539.9,2539.8,7.9198884]
[1747705879721,3.98716288,2539.9,2539.8,8.71187724]
[1747705880947,3.98716288,2539.9,2539.8,7.9198884]
[1747705882145,4.79326288,2539.9,2539.8,7.9198884]
[1747705885366,3.98716288,2539.9,2539.8,7.9198884]
[1747705887429,4.74066288,2539.9,2539.8,7.9198884]
[1747705887624,3.98716288,2539.9,2539.8,7.9198884]
[1747705887858,3.98716288,2539.9,2539.8,8.71187724]
[1747705888242,0.05,2539.9,2539.8,16.71187724]
[1747705888438,0.05,2539.9,2539.8,41.44162113]
[1747705888667,0.01672257,2539.9,2539.8,48.39808913]
[1747705888838,0.01672257,2539.9,2539.8,44.39948913]
[1747705889348,0.01672257,2539.9,2539.8,32.08227813]
[1747705889660,0.01672257,2539.9,2539.8,27.11742024]
[1747705889973,3.95388545,2539.9,2539.8,17.85097772]
[1747705890637,4.75518545,2539.9,2539.8,0.43598888]
[1747705891435,4.75518545,2539.9,2539.8,0.0668884]
[1747705893943,0.8064,2539.4,2539.3,7.854]
[1747705894159,3.93871361,2538.9,2538.8,16.999]
[1747705894366,3.93871361,2538.9,2538.8,24.853]
[1747705894871,3.93871361,2538.9,2538.8,27.65708456]
[1747705895842,3.93871361,2538.9,2538.8,35.65708456]
[1747705896040,3.93857866,2539.0,2538.8,35.65708456]
[1747705896945,3.93871361,2538.9,2538.8,35.65708456]
[1747705897878,3.93871361,2538.9,2538.8,32.853]
[1747705898879,0.7741,2539.6,2539.0,0.8193]
[1747705899175,3.93840337,2539.1,2539.0,0.8193]
[1747705899775,3.93827264,2539.2,2539.0,0.8193]
[1747705899979,3.93827264,2539.2,2539.0,4.18653]
[1747705900385,0.7741,2539.6,2539.0,4.18653]
[1747705900386,3.93840337,2539.1,2539.0,12.18653]
[1747705900684,0.7741,2539.6,2539.0,12.18653]
[1747705900685,3.93828403,2539.2,2539.0,12.18653]
[1747705901204,3.93828403,2539.2,2538.8,24.853]
[1747705901205,3.93871361,2538.9,2538.8,24.853]
[1747705902180,0.8206,2539.5,2538.8,24.853]
[1747705902381,3.93793809,2539.4,2538.8,24.853]
[1747705903096,3.93862632,2539.0,2538.9,8.7618]
[1747705903389,3.93862632,2539.0,2538.9,12.12328]
[1747705904088,0.7796,2539.8,2538.9,12.12328]
[1747705904387,3.93805802,2539.4,2539.0,0.03937953]
[1747705904592,3.93805802,2539.4,2539.1,0.36922291]
[1747705905669,3.93784675,2539.5,2539.1,0.36922291]
[1747705905906,3.93765605,2539.6,2539.2,0.7936]
[1747705906084,3.93765605,2539.6,2539.3,8.76328229]
[1747705906284,3.93765605,2539.6,2539.4,8.0]
[1747705906962,3.93778302,2539.5,2539.4,8.0]
[1747705909493,4.73703809,2539.4,2539.3,7.847]
[1747705910289,3.93793809,2539.4,2539.3,7.847]
[1747705911416,3.93778302,2539.5,2538.9,8.0]
[1747705911717,3.93793809,2539.4,2539.3,7.847]
[1747705912519,3.93853135,2539.1,2538.9,8.0]
[1747705912812,3.93778302,2539.5,2539.0,7.847]
[1747705913312,3.93828294,2539.2,2539.0,7.847]
[1747705913611,0.7993,2539.6,2539.0,7.847]
[1747705913779,3.93828467,2539.2,2539.0,7.847]
[1747705914710,3.93779867,2539.5,2539.1,0.7601]
[1747705914919,3.93812198,2539.3,2539.1,0.7601]
[1747705916426,3.93824826,2539.2,2539.0,7.847]
[1747705916632,3.93840337,2539.1,2539.0,7.847]
[1747705918923,3.93855848,2539.0,2538.9,8.0]
[1747705919081,3.93855848,2539.0,2538.9,15.847]
[1747705919421,3.93855848,2539.0,2538.9,16.21645661]
[1747705921219,3.9383142,2539.2,2538.9,19.53800227]
[1747705921516,0.83712257,2539.9,2539.0,0.7584]
[1747705921716,3.93770663,2539.6,2539.1,8.0]
[1747705922020,3.93731789,2539.8,2539.1,11.93825084]
[1747705922221,0.01672257,2539.9,2539.5,0.7855]
[1747705922520,0.01672257,2539.9,2539.2,1.23319828]
[1747705922521,0.01672257,2539.9,2539.8,12.72281789]
[1747705922722,0.01672257,2539.9,2539.8,32.942677]
[1747705923022,0.01672257,2539.9,2539.8,25.7875]
[1747705923198,0.01672257,2539.9,2539.8,28.36545]
[1747705923518,0.01672257,2539.9,2539.8,36.99545]
[1747705924123,0.01672257,2539.9,2539.8,57.75229089]
[1747705924297,0.01672257,2539.9,2539.8,54.58094108]
[1747705924503,0.01672257,2539.9,2539.8,44.63875108]
[1747705924692,0.01672257,2539.9,2539.8,37.36490661]
[1747705925321,0.01672257,2539.9,2539.8,36.58190661]
[1747705925322,3.95388545,2539.9,2539.8,36.58190661]
[1747705925631,3.95388545,2539.9,2539.8,33.21845661]
[1747705925815,3.95388545,2539.9,2539.8,32.849]
[1747705926210,0.01672257,2539.9,2539.8,32.849]
[1747705929939,0.01672257,2539.9,2539.8,34.01240808]
[1747705931556,3.78496968,2540.0,2539.8,34.01240808]
[1747705931743,3.78496968,2540.0,2539.9,3.40124081]
[1747705931943,3.93691102,2540.1,2540.0,8.0]
[1747705935181,0.7823,2540.5,2539.9,8.0]
[1747705935363,0.83,2540.7,2539.9,8.0]
[1747705935658,0.83,2540.7,2540.0,3.97637105]
[1747705935957,3.93638224,2540.5,2540.1,1.19763711]
[1747705936357,3.93623302,2540.5,2540.1,1.19763711]
[1747705936534,0.83,2540.7,2540.2,8.03936252]
[1747705936854,3.93616148,2540.6,2540.3,8.6206]
[1747705937164,3.93616148,2540.6,2540.3,10.40635996]
[1747705937930,3.93638797,2540.4,2540.3,10.40635996]
[1747705938133,3.93638797,2540.4,2540.3,18.40635996]
[1747705938340,3.93638797,2540.4,2540.3,15.835]
[1747705942074,3.93630949,2540.5,2540.3,15.835]
[1747705942375,0.8136,2540.9,2540.3,15.835]
[1747705942376,3.93600165,2540.7,2540.3,15.835]
[1747705942572,3.93638797,2540.4,2540.3,15.835]
[1747705944043,3.93608111,2540.6,2540.4,0.7738]
[1747705944238,3.93608111,2540.6,2540.5,1.66088]
[1747705946103,0.05,2540.9,2540.5,1.66088]
[1747705946281,0.05,2540.9,2540.8,3.93576826]
[1747705946478,0.05,2540.9,2540.8,19.80911756]
[1747705946793,0.05,2540.9,2540.8,19.76976826]
[1747705946997,0.05,2540.9,2540.8,22.97033598]
[1747705947160,0.05,2540.9,2540.8,23.52033598]
[1747705947656,0.05,2540.9,2540.8,35.68662298]
[1747705947853,0.05,2540.9,2540.8,34.00865298]
[1747705948093,0.05,2541.9,2541.4,0.8004]
[1747705948258,0.05,2541.9,2541.6,8.0]
[1747705948459,0.05,2541.9,2541.8,8.0]
[1747705948662,3.98406506,2541.9,2541.8,8.0]
[1747705949310,3.98406506,2541.9,2541.8,15.833]
[1747705949663,4.80406506,2541.9,2541.8,7.833]
[1747705952819,3.93452943,2541.6,2541.5,16.992]
[1747705953121,3.93452943,2541.6,2541.5,24.824]
[1747705953885,3.93452943,2541.6,2541.5,36.0936]
[1747705954210,3.93452943,2541.6,2541.5,32.824]
[1747705954378,3.93452943,2541.6,2541.5,16.992]
[1747705954730,4.68877809,2540.6,2540.5,0.46160411]
[1747705955079,3.93607809,2540.6,2540.5,0.46160411]
[1747705955276,3.93607809,2540.6,2540.5,17.05780411]
[1747705955481,3.93597295,2540.7,2540.5,9.05780411]
[1747705955683,3.93597295,2540.7,2540.6,0.90578041]
[1747705956109,3.93577091,2540.8,2540.6,0.90578041]
[1747705956309,3.93592317,2540.7,2540.6,0.90578041]
[1747705956522,3.93592317,2540.7,2540.6,8.90578041]
[1747705957314,3.93587308,2540.8,2540.6,8.90578041]
[1747705957618,3.93576826,2540.8,2540.7,1.75019804]
[1747705959027,0.7604,2541.8,2540.8,0.8176]
[1747705959185,3.93508895,2541.3,2540.9,0.03934985]
[1747705959391,3.93517777,2541.2,2541.0,7.823]
[1747705960638,3.93517777,2541.2,2541.0,15.823]
[1747705960639,3.9352179,2541.2,2541.0,15.823]
[1747705961222,3.9353036,2541.1,2541.0,15.823]
[1747705963111,3.9353036,2541.1,2541.0,8.0]
[1747705963303,3.93592317,2540.7,2540.5,8.8176]
[1747705963506,3.93592317,2540.7,2540.6,18.40366]
[1747705965488,3.93589495,2540.8,2540.6,18.40366]
[1747705965720,3.93592317,2540.7,2540.6,18.40366]
[1747705966894,3.93592317,2540.7,2540.6,15.823]
[1747705967924,4.73702317,2540.7,2540.6,15.823]
[1747705968732,3.93592317,2540.7,2540.6,15.823]
[1747705969533,0.7794,2541.2,2540.7,8.0]
[1747705969827,3.93512096,2541.3,2540.7,11.2116]
[1747705970553,3.93576826,2540.8,2540.7,11.2116]
[1747705971053,3.93576826,2540.8,2540.7,10.3823]
[1747705971220,3.93576826,2540.8,2540.7,8.0]
[1747705972652,3.93562678,2540.9,2540.7,0.8026]
[1747705972653,3.93561336,2540.9,2540.7,0.8026]
[1747705972945,3.93575114,2540.9,2540.7,0.8026]
[1747705973345,3.93550855,2541.0,2540.7,0.8026]
[1747705973346,3.93576826,2540.8,2540.7,0.8026]
[1747705973508,3.93592317,2540.7,2540.6,15.823]
[1747705973714,3.93583375,2540.8,2540.7,8.0]
[1747705974422,3.93592317,2540.7,2540.6,7.823]
[1747705974750,3.93582618,2540.8,2540.6,7.823]
[1747705975337,3.93592317,2540.7,2540.6,7.823]
[1747705975552,3.93592317,2540.7,2540.6,8.60210766]
[1747705976060,3.93592317,2540.7,2540.6,7.823]
[1747705976849,3.93583676,2540.8,2540.6,7.823]
[1747705977436,3.93578187,2540.8,2540.6,7.823]
[1747705977637,3.93578187,2540.8,2540.6,8.5978]
[1747705977856,3.93592317,2540.7,2540.6,8.5978]
[1747705978059,3.93592317,2540.7,2540.6,19.95648]
[1747705979863,3.93592317,2540.7,2540.6,19.18168]
[1747705980236,3.93592317,2540.7,2540.6,15.823]
[1747705981667,3.93584007,2540.8,2540.7,8.0]
[1747705981837,3.93584007,2540.8,2540.6,7.823]
[1747705982038,3.93565128,2540.9,2540.7,0.7748]
[1747705982240,3.93576826,2540.8,2540.7,0.7748]
[1747705983078,3.93576826,2540.8,2540.6,7.823]
[1747705983079,3.93592317,2540.7,2540.6,7.823]
[1747705984066,3.93592317,2540.7,2540.6,8.19341756]
[1747705985591,3.93592317,2540.7,2540.6,7.823]
[1747705987178,4.70892317,2540.7,2540.6,7.823]
[1747705988693,3.93592317,2540.7,2540.6,7.823]
[1747705990791,3.93623302,2540.5,2540.4,16.989]
[1747705990984,3.93623302,2540.5,2540.4,32.805]
[1747705991759,3.93623302,2540.5,2540.4,33.17649495]
[1747705991963,3.93576826,2540.8,2540.4,34.79793298]
[1747705992186,3.9359634,2540.7,2540.4,34.79793298]
[1747705992574,3.93615051,2540.6,2540.4,34.79793298]
[1747705992792,3.93615051,2540.6,2540.5,0.37149495]
[1747705994599,0.773,2540.9,2540.5,0.37149495]
[1747705994767,3.93561336,2540.9,2540.6,0.79575802]
[1747705994967,3.93580661,2540.8,2540.6,0.7564]
[1747705995168,3.93580661,2540.8,2540.7,0.37149495]
[1747705996974,3.93422583,2541.8,2540.7,0.37149495]
[1747705996975,3.9353036,2541.1,2540.7,0.37149495]
[1747705997191,4.73489245,2541.4,2540.7,0.37149495]
[1747705997192,3.93576826,2540.8,2540.7,0.37149495]
[1747705997363,3.93576826,2540.8,2540.7,0.81604939]
[1747705998514,3.93576826,2540.8,2540.7,8.18749495]
[1747705999012,3.93526364,2541.2,2540.7,8.94719495]
[1747705999317,0.7546,2541.6,2540.8,8.0]
[1747705999510,3.93544918,2541.1,2540.8,8.0]
[1747705999996,0.7546,2541.6,2540.8,8.0]
[1747706000185,0.7546,2541.6,2540.9,2.08830053]
[1747706000604,3.93523273,2541.2,2540.9,2.45979548]
[1747706000805,4.68915399,2541.6,2540.9,2.45979548]
[1747706001323,3.93521801,2541.2,2540.9,2.45979548]
[1747706001538,3.93521801,2541.2,2541.1,0.7597]
[1747706002023,3.93494251,2541.4,2541.1,0.7597]
[1747706002226,3.93494251,2541.4,2541.2,7.815]
[1747706002792,3.9349939,2541.3,2541.2,7.815]
[1747706003226,0.05,2541.9,2541.2,16.5747]
[1747706003402,0.05,2541.9,2541.3,9.65747]
[1747706003602,3.93477397,2541.5,2541.3,1.65747]
[1747706004199,3.93483906,2541.4,2541.3,1.65747]
[1747706004817,3.93474157,2541.5,2541.3,9.65747]
[1747706006341,3.93483906,2541.4,2541.3,9.65747]
[1747706006541,3.9353036,2541.1,2541.0,1.22130411]
[1747706006744,3.93520065,2541.2,2541.0,17.03530411]
[1747706007147,3.93476964,2541.5,2541.0,17.03530411]
[1747706007441,3.93471791,2541.5,2541.1,0.36928753]
[1747706007608,3.93471791,2541.5,2541.2,8.0]
[1747706008940,3.93486921,2541.4,2541.2,8.0]
[1747706009546,3.93514874,2541.2,2540.8,1.27470411]
[1747706009746,3.93514874,2541.2,2540.9,7.814]
[1747706009939,3.93514874,2541.2,2541.0,0.90887041]
[1747706010119,3.93514874,2541.2,2541.0,9.27790486]
[1747706010319,4.71127183,2541.6,2541.0,9.27790486]
[1747706010524,3.93492485,2541.4,2541.0,9.27790486]
[1747706011071,3.93492485,2541.4,2541.1,0.36903445]
[1747706011371,3.93507688,2541.3,2541.1,1.70919049]
[1747706011867,4.72544348,2541.8,2541.2,0.7878]
[1747706012049,0.05,2541.9,2541.2,0.7878]
[1747706012224,3.9349939,2541.3,2541.2,0.7878]
[1747706012424,3.9348792,2541.4,2541.2,9.92838609]
[1747706012849,3.93490311,2541.4,2541.2,9.92838609]
[1747706013046,3.9349939,2541.3,2541.2,9.92838609]
[1747706013231,3.93474771,2541.5,2541.2,9.92838609]
[1747706014758,0.8709,2541.9,2541.2,9.92838609]
[1747706014759,3.93454427,2541.6,2541.2,9.92838609]
[1747706014928,3.93454427,2541.6,2541.3,9.16375766]
[1747706015263,3.93454427,2541.6,2541.5,8.0]
[1747706016951,3.93421984,2541.8,2541.5,8.0]
[1747706017438,3.93421984,2541.8,2541.6,0.797]
[1747706017639,0.05,2541.9,2541.6,2.4581]
[1747706019050,3.93422239,2541.8,2541.6,2.4581]
[1747706019361,3.93422239,2541.8,2541.6,1.6611]
[1747706020163,0.05,2541.9,2541.7,0.7758]
[1747706020383,0.05,2542.9,2542.2,3.9335509]
[1747706020607,0.05,2542.9,2542.4,8.0]
[1747706020878,0.05,2542.9,2542.5,7.84332786]
[1747706021077,3.98255619,2542.9,2542.5,7.84332786]
[1747706021279,3.98255619,2542.9,2542.5,7.804]
[1747706021482,0.05,2542.9,2542.6,2.479]
[1747706021780,3.98257305,2542.9,2542.6,10.479]
[1747706022883,3.93313667,2542.5,2542.4,16.986]
[1747706023087,3.93313667,2542.5,2542.4,24.986]
[1747706023386,3.93313667,2542.5,2542.4,16.986]
[1747706028983,0.05,2542.9,2542.4,16.986]
[1747706028984,0.83,2542.9,2542.4,16.986]
[1747706029292,3.93272501,2542.8,2542.5,8.0]
[1747706029496,3.93292096,2542.7,2542.5,11.35889]
[1747706029655,3.93270724,2542.8,2542.5,11.35889]
[1747706030367,3.93283943,2542.7,2542.5,11.35889]
[1747706030576,3.93273935,2542.8,2542.5,11.35889]
[1747706030769,3.93273935,2542.8,2542.7,8.0]
[1747706031468,0.05,2542.9,2542.7,8.0]
[1747706031798,3.98251799,2542.9,2542.8,7.802]
[1747706032904,3.93267264,2542.8,2542.7,8.0]
[1747706033110,3.93298198,2542.6,2542.5,7.801]
[1747706036039,3.93289451,2542.7,2542.6,8.0]
[1747706036530,3.88273839,2542.8,2542.6,11.36055]
[1747706036726,0.05,2542.9,2542.6,11.36055]
[1747706036931,3.93269662,2542.8,2542.6,11.36055]
[1747706037531,3.9328273,2542.7,2542.6,11.36055]
[1747706038039,3.93272205,2542.8,2542.6,11.36055]
[1747706039335,3.9328273,2542.7,2542.6,11.36055]
[1747706040403,3.9328273,2542.7,2542.6,8.0]
[1747706041026,3.9328273,2542.7,2542.6,15.801]
[1747706042138,3.93268572,2542.8,2542.6,15.801]
[1747706042139,3.93273406,2542.8,2542.6,15.801]
[1747706042407,3.93275257,2542.8,2542.6,15.801]
[1747706042627,3.9328273,2542.7,2542.6,15.801]
[1747706042833,3.9825567,2542.9,2542.6,19.0797]
[1747706043109,0.05,2542.9,2542.7,0.7538]
[1747706043311,0.05,2542.9,2542.8,13.296985]
[1747706043502,0.05,2542.9,2542.8,16.37612904]
[1747706043703,0.05,2542.9,2542.8,13.72844004]
[1747706043931,0.05,2542.9,2542.8,11.70634404]
[1747706044519,3.98251799,2542.9,2542.8,11.70634404]
[1747706044730,3.98251799,2542.9,2542.8,15.8]
[1747706044934,3.93267264,2542.8,2542.6,3.2787]
[1747706045122,3.98258105,2542.9,2542.7,15.8]
[1747706045322,3.98258105,2542.9,2542.8,8.0]
[1747706045957,3.93267264,2542.8,2542.7,7.8]
[1747706046167,3.98253153,2542.9,2542.8,8.0]
[1747706046369,0.05,2542.9,2542.8,8.0]
[1747706046726,0.05,2542.9,2542.8,8.07704336]
[1747706048142,0.05,2542.9,2542.8,9.2173763]
[1747706049361,0.05,2542.9,2542.8,9.0173763]
[1747706049525,0.05,2542.9,2542.8,19.16537493]
[1747706050036,3.98251799,2542.9,2542.8,19.16537493]
[1747706050222,3.98251799,2542.9,2542.8,10.59317493]
[1747706050420,3.98251799,2542.9,2542.8,16.2371763]
[1747706051049,3.98251799,2542.9,2542.8,15.86904336]
[1747706051641,0.05,2542.9,2542.8,16.68464336]
[1747706052823,0.05,2542.9,2542.8,25.687956]
[1747706053670,0.05,2542.9,2542.8,16.68464336]
[1747706053835,0.05,2542.9,2542.8,21.50256174]
[1747706054038,0.05,2542.9,2542.8,11.25716974]
[1747706054238,0.05,2542.9,2542.8,30.00209574]
[1747706054438,0.05,2542.9,2542.8,27.0248743]
[1747706054678,0.05,2542.9,2542.8,27.01218238]
[1747706055662,0.05,2542.9,2542.8,26.01415449]
[1747706056170,0.02167696,2542.9,2542.8,26.01415449]
[1747706056329,0.02167696,2542.9,2542.8,27.11379237]
[1747706056529,3.93126521,2543.8,2543.3,0.7592]
[1747706056727,3.98099338,2543.9,2543.5,8.0]
[1747706057026,0.05,2543.9,2543.7,0.7592]
[1747706057431,0.05,2543.9,2543.7,4.6903615]
[1747706057665,0.05,2543.9,2543.7,0.7592]
[1747706058281,0.05,2543.9,2543.8,0.36819204]
[1747706058780,0.05,2543.9,2543.8,16.16019204]
[1747706058969,3.98097212,2543.9,2543.8,18.01005124]
[1747706059176,0.05,2543.9,2543.8,18.01005124]
[1747706059654,3.98097212,2543.9,2543.8,17.6408592]
[1747706059859,3.98097212,2543.9,2543.8,15.791]
[1747706060178,3.98097212,2543.9,2543.8,8.0]
[1747706061097,3.98097212,2543.9,2543.8,15.791]
[1747706061889,3.98097212,2543.9,2543.8,7.791]
[1747706062070,3.93112666,2543.8,2543.7,0.07817567]
[1747706063614,3.93112666,2543.8,2543.7,7.86917567]
[1747706065002,3.98103389,2543.9,2543.7,7.86917567]
[1747706066510,0.05,2543.9,2543.7,11.19313616]
[1747706066719,0.05,2543.9,2543.8,0.8225]
[1747706067275,0.05,2543.9,2543.8,8.8225]
[1747706067612,0.05,2543.9,2543.8,9.3725]
[1747706067779,0.05,2543.9,2543.8,16.24255266]
[1747706067984,0.05,2543.9,2543.8,19.74531035]
[1747706068185,0.05,2543.9,2543.8,12.87525769]
[1747706069700,0.05,2543.9,2543.8,18.63322269]
[1747706069906,0.05,2543.9,2543.8,16.80638435]
[1747706070116,0.05,2543.9,2543.8,28.08877035]
[1747706070278,0.05,2543.9,2543.8,29.15955323]
[1747706071013,0.05,2544.9,2544.7,0.7729]
[1747706071216,0.05,2544.9,2544.8,32.80128589]
[1747706071417,0.05,2544.9,2544.8,36.11941859]
[1747706071804,0.05,2544.9,2544.8,28.32941859]
[1747706072004,0.05,2544.9,2544.8,32.761]
[1747706072406,3.97942748,2544.9,2544.8,32.761]
[1747706072607,3.97942748,2544.9,2544.8,24.972]
[1747706072801,3.97942748,2544.9,2544.8,32.761]
[1747706073404,4.78452748,2544.9,2544.8,24.972]
[1747706073694,4.78452748,2544.9,2544.8,16.972]
[1747706074898,0.8551,2544.9,2544.4,8.0]
[1747706075098,0.8551,2544.9,2544.2,7.789]
[1747706075099,3.93035412,2544.3,2544.2,7.789]
[1747706075321,4.75814461,2544.7,2544.3,8.0]
[1747706075497,3.92984461,2544.7,2544.3,10.3877]
[1747706075709,0.8283,2544.8,2544.3,8.0]
[1747706075710,3.92991425,2544.6,2544.3,8.0]
[1747706076108,3.93008742,2544.5,2544.3,8.0]
[1747706076311,3.92973631,2544.7,2544.3,8.0]
[1747706076633,3.93014006,2544.5,2544.3,8.0]
[1747706077830,3.93019965,2544.4,2544.3,8.0]
[1747706078430,3.93001709,2544.6,2544.3,8.0]
[1747706078731,0.8283,2544.8,2544.3,8.8008]
[1747706078902,0.8283,2544.8,2544.3,8.0]
[1747706079239,3.93019965,2544.4,2544.3,8.0]
[1747706080132,4.71379965,2544.4,2544.3,7.788]
[1747706080542,3.93019965,2544.4,2544.3,7.788]
[1747706084521,3.93081761,2544.0,2543.9,8.0]
[1747706084719,3.93072545,2544.1,2543.9,18.36771757]
[1747706084942,3.93058235,2544.2,2543.9,15.781]
[1747706085552,4.74336421,2544.5,2543.9,15.781]
[1747706085752,3.93020947,2544.4,2544.0,0.36687128]
[1747706085945,3.9305086,2544.2,2544.0,0.36687128]
[1747706086129,3.9306631,2544.1,2544.0,3.76055841]
[1747706086453,3.93054624,2544.2,2544.0,19.54155841]
[1747706087854,3.93054624,2544.2,2544.0,19.17468713]
[1747706088061,3.9306631,2544.1,2544.0,19.17468713]
[1747706088256,3.93037877,2544.3,2544.0,15.781]
[1747706088454,3.93059663,2544.2,2544.0,15.781]
[1747706088950,3.93037877,2544.3,2544.0,15.781]
[1747706088951,3.93040586,2544.3,2544.1,8.0]
[1747706089321,0.8133,2544.5,2544.1,8.0]
[1747706089322,3.9305086,2544.2,2544.1,8.0]
[1747706089841,3.93041241,2544.3,2544.1,8.0]
[1747706090047,3.93041241,2544.3,2544.1,9.5781]
[1747706090359,3.92989074,2544.6,2544.1,9.5781]
[1747706090853,3.93012465,2544.5,2544.1,9.5781]
[1747706091154,3.93012465,2544.5,2544.2,0.367123]
[1747706091523,3.93012465,2544.5,2544.2,0.42645581]
[1747706091725,3.93012465,2544.5,2544.2,1.13827511]
[1747706092026,3.93012465,2544.5,2544.3,0.05933048]
[1747706093078,3.92975306,2544.7,2544.3,0.05933048]
[1747706093371,3.93000265,2544.6,2544.3,0.05933048]
[1747706093671,3.93019965,2544.4,2544.3,0.05933048]
[1747706093971,3.93019965,2544.4,2544.3,15.84033048]
[1747706102198,4.71519965,2544.4,2544.3,0.05933048]
[1747706102495,3.93019965,2544.4,2544.3,0.05933048]
[1747706107017,0.835,2544.9,2544.3,0.84336353]
[1747706107180,3.9298422,2544.7,2544.4,0.7561]
[1747706107500,3.92989388,2544.6,2544.4,0.7561]
[1747706107797,3.93004519,2544.5,2544.4,0.7561]
[1747706108368,3.93019965,2544.4,2544.3,0.42709789]
[1747706108573,3.93019965,2544.4,2544.3,8.20809789]
[1747706109785,3.93019965,2544.4,2544.3,7.84033048]
[1747706114254,3.93013095,2544.5,2544.3,8.62436353]
[1747706114751,3.93013095,2544.5,2544.3,8.99195482]
[1747706116561,3.93013095,2544.5,2544.4,0.36759129]
[1747706116958,3.92995556,2544.6,2544.5,0.7867]
[1747706117247,3.92979669,2544.7,2544.5,0.7867]
[1747706118151,0.05,2544.9,2544.5,0.7867]
[1747706118351,3.92973631,2544.7,2544.6,0.91542913]